Workbook

Sheet Sheet1
A1: U | B1: 1.048918885 | C1: Strike Price | D1: 2500
A2: D | B2: 0.9533625666 | C2: Q | D2: =(EXP($D$3)-$B$2)/($B$1-$B$2) -> 0.5265044903
A3: S0 | B3: 2620 | C3: R | D3: =0.044/12 -> 0.003666666667
A4: Time Period (In months) | N4: Payoff | O4: Probability | P4: PV Factor | Q4: EPV
A5: 0 | B5: 1 | C5: 2 | D5: 3 | E5: 4 | F5: 5 | G5: 6 | H5: 7 | I5: 8 | J5: 9 | K5: 10 | L5: 11 | M5: 12
M6: 4647.336769 | N6: =IF(M6=0,"",MAX(M6-$D$1,0)) -> 2147.336769 | O6: =COMBIN($M$5,A5)*($D$2^M5)*(1-$D$2)^A5 -> 0.0004537586877 | P6: =IF(O6=0,"",EXP(-$D$3*12)) -> 0.9569539575 | Q6: =IF(O6=0,"",N6*O6*P6) -> 0.9324298252
L7: 4430.596911 | N7: =IF(M7=0,"",MAX(M7-$D$1,0)) ->  | P7: =IF(O7=0,"",EXP(-$D$3*12)) ->  | Q7: =IF(O7=0,"",N7*O7*P7) ->  | AC7: =AD1048568 -> 0
K8: 4223.965242 | M8: 4223.965242 | N8: 1723.965242 | O8: =COMBIN($M$5,B5)*($D$2^L5)*(1-$D$2)^B5 -> 0.004896885897 | P8: 0.9569539575 | Q8: 8.078663762 | S8: =T1048569 -> 0
J9: 4026.970345 | L9: 4026.970345
I10: 3839.162784 | K10: 3839.162784 | M10: 3839.162784 | N10: 1339.162784 | O10: =COMBIN($M$5,C5)*($D$2^K5)*(1-$D$2)^C5 -> 0.02422124482 | P10: 0.9569539575 | Q10: 31.03994004
H11: 3660.114085 | J11: 3660.114085 | L11: 3660.114085
G12: 3489.415759 | I12: 3489.415759 | K12: 3489.415759 | M12: 3489.415759 | N12: 989.4157585 | O12: =COMBIN($M$5,D5)*($D$2^J5)*(1-$D$2)^D5 -> 0.072608755 | P12: 0.9569539575 | Q12: 68.7478081
F13: 3326.678364 | H13: 3326.678364 | J13: 3326.678364 | L13: 3326.678364
E14: 3171.530623 | G14: 3171.530623 | I14: 3171.530623 | K14: 3171.530623 | M14: 3171.530623 | N14: 671.5306231 | O14: =COMBIN($M$5,E5)*($D$2^I5)*(1-$D$2)^E5 -> 0.1469214797 | P14: 0.9569539575 | Q14: 94.41525242
D15: 3023.618575 | F15: 3023.618575 | H15: 3023.618575 | J15: 3023.618575 | L15: 3023.618575
C16: 2882.604765 | E16: 2882.604765 | G16: 2882.604765 | I16: 2882.604765 | K16: 2882.604765 | M16: 2882.604765 | N16: 382.6047652 | O16: =COMBIN($M$5,F5)*($D$2^H5)*(1-$D$2)^F5 -> 0.2114068531 | P16: 0.9569539575 | Q16: 77.40347867
B17: 2748.167478 | D17: 2748.167478 | F17: 2748.167478 | H17: 2748.167478 | J17: 2748.167478 | L17: 2748.167478
A18: =B3 -> 2620 | C18: 2620 | E18: 2620 | G18: 2620 | I18: 2620 | K18: 2620 | M18: 2620 | N18: 120 | O18: =COMBIN($M$5,G5)*($D$2^G5)*(1-$D$2)^G5 -> 0.2218092415 | P18: 0.9569539575 | Q18: 25.47134777
B19: 2497.809925 | D19: 2497.809925 | F19: 2497.809925 | H19: 2497.809925 | J19: 2497.809925 | L19: 2497.809925
C20: 2381.318481 | E20: 2381.318481 | G20: 2381.318481 | I20: 2381.318481 | K20: 2381.318481 | M20: 2381.318481 | N20: 0 | O20: =COMBIN($M$5,H5)*($D$2^F5)*(1-$D$2)^H5 -> 0.1709805195 | P20: 0.9569539575 | Q20: 0
D21: 2270.259899 | F21: 2270.259899 | H21: 2270.259899 | J21: 2270.259899 | L21: 2270.259899
E22: 2164.380804 | G22: 2164.380804 | I22: 2164.380804 | K22: 2164.380804 | M22: 2164.380804 | N22: 0 | O22: =COMBIN($M$5,I5)*($D$2^E5)*(1-$D$2)^I5 -> 0.09610377231 | P22: 0.9569539575 | Q22: 0
F23: 2063.439638 | H23: 2063.439638 | J23: 2063.439638 | L23: 2063.439638
G24: 1967.20611 | I24: 1967.20611 | K24: 1967.20611 | M24: 1967.20611 | N24: 0 | O24: =COMBIN($M$5,J5)*($D$2^D5)*(1-$D$2)^J5 -> 0.03841242297 | P24: 0.9569539575 | Q24: 0
H25: 1875.460666 | J25: 1875.460666 | L25: 1875.460666
I26: 1787.993994 | K26: 1787.993994 | M26: 1787.993994 | N26: 0 | O26: =COMBIN($M$5,K5)*($D$2^C5)*(1-$D$2)^K5 -> 0.01036350694 | P26: 0.9569539575 | Q26: 0
J27: 1704.606543 | L27: 1704.606543
K28: 1625.108069 | M28: 1625.108069 | N28: 0 | O28: =COMBIN($M$5,L5)*($D$2^B5)*(1-$D$2)^L5 -> 0.001694563464 | P28: 0.9569539575 | Q28: 0
L29: 1549.3172
M30: 1477.061022 | N30: 0 | O30: =COMBIN($M$5,M5)*($D$2^A5)*(1-$D$2)^M5 -> 0.0001269960981 | P30: 0.9569539575 | Q30: 0
Q32: =SUM(Q6:Q30) -> 306.0889206

Sheet Sheet2
A1: Temp | B1: Sigma | C1: U | D1: D | E1: EPV
A2: 2318 | B2: =A2/100000 -> 0.02318 | C2: =EXP((B2)*SQRT(1)) -> 1.023450744 | D2: =1/C2 -> 0.9770865924 | E2: 239.5852162 | G2: Average option price | H2: =AVERAGE(E2:E101) -> 325.5446632
A3: 2706 | B3: 0.02706 | C3: =EXP((B3)*SQRT(1)) -> 1.027429447 | D3: =1/C3 -> 0.9733028416 | E3: 248.2078429
A4: 6947 | B4: 0.06947 | C4: 1.071939903 | D4: 0.9328881196 | E4: 374.0127503
A5: 6193 | B5: 0.06193 | C5: 1.06388787 | D5: 0.9399486809 | E5: 350.0540165
A6: 3410 | B6: 0.0341 | C6: 1.03468807 | D6: 0.9664748523 | E6: 266.4031033
A7: 1032 | B7: 0.01032 | C7: 1.010373435 | D7: 0.9897330685 | E7: 227.7494532
A8: 5399 | B8: 0.05399 | C8: 1.055474047 | D8: 0.9474415809 | E8: 325.1959913
A9: 5236 | B9: 0.05236 | C9: 1.053755026 | D9: 0.94898717 | E9: 320.1567698
A10: 8836 | B10: 0.08836 | C10: 1.092381309 | D10: 0.9154312621 | E10: 434.884875
A11: 5530 | B11: 0.0553 | C11: 1.056857624 | D11: 0.946201245 | E11: 329.2636622
A12: 4072 | B12: 0.04072 | C12: 1.041560428 | D12: 0.9600979197 | E12: 285.1386117
A13: 4793 | B13: 0.04793 | C13: 1.049097216 | D13: 0.9532005088 | E13: 306.6042801
A14: 6870 | B14: 0.0687 | C14: 1.071114826 | D14: 0.9336067201 | E14: 371.5540049
A15: 5274 | B15: 0.05274 | C15: 1.054155529 | D15: 0.9486266233 | E15: 321.3292601
A16: 1571 | B16: 0.01571 | C16: 1.015834051 | D16: 0.9844127584 | E16: 230.4360699
A17: 6040 | B17: 0.0604 | C17: 1.062261366 | D17: 0.9413879031 | E17: 345.2294535
A18: 6324 | B18: 0.06324 | C18: 1.065282476 | D18: 0.9387181543 | E18: 354.1958947
A19: 8555 | B19: 0.08555 | C19: 1.089316026 | D19: 0.9180072415 | E19: 425.7801059
A20: 8398 | B20: 0.08398 | C20: 1.087607141 | D20: 0.9194496449 | E20: 420.698731
A21: 2417 | B21: 0.02417 | C21: 1.024464462 | D21: 0.9761197553 | E21: 241.5547897
A22: 2661 | B22: 0.02661 | C22: 1.026967207 | D22: 0.9737409264 | E22: 247.1332418
A23: 4417 | B23: 0.04417 | C23: 1.045160017 | D23: 0.9567912891 | E23: 295.3019962
A24: 3237 | B24: 0.03237 | C24: 1.032899607 | D24: 0.9681483009 | E24: 261.728511
A25: 5940 | B25: 0.0594 | C25: 1.061199636 | D25: 0.9423297619 | E25: 342.0841867
A26: 9056 | B26: 0.09056 | C26: 1.094787193 | D26: 0.9134195271 | E26: 442.0210792
A27: 2905 | B27: 0.02905 | C27: 1.029476067 | D27: 0.9713678949 | E27: 253.1065234
A28: 5589 | B28: 0.05589 | C28: 1.057481354 | D28: 0.9456431509 | E28: 331.100495
A29: 7701 | B29: 0.07701 | C29: 1.080052877 | D29: 0.9258805948 | E29: 398.2006886
A30: 9619 | B30: 0.09619 | C30: 1.100968228 | D30: 0.9082914243 | E30: 460.3085434
A31: 5023 | B31: 0.05023 | C31: 1.051512917 | D31: 0.9510106669 | E31: 313.612483
A32: 7340 | B32: 0.0734 | C32: 1.076160915 | D32: 0.9292290641 | E32: 386.596777
A33: 9061 | B33: 0.09061 | C33: 1.094841934 | D33: 0.9133738573 | E33: 442.1833383
A34: 7427 | B34: 0.07427 | C34: 1.077097583 | D34: 0.9284209863 | E34: 389.3897079
A35: 8643 | B35: 0.08643 | C35: 1.090275046 | D35: 0.9171997505 | E35: 428.630097
A36: 4360 | B36: 0.0436 | C36: 1.044564446 | D36: 0.9573368156 | E36: 293.6078541
A37: 5942 | B37: 0.05942 | C37: 1.06122086 | D37: 0.9423109154 | E37: 342.1470268
A38: 8208 | B38: 0.08208 | C38: 1.08554265 | D38: 0.9211982599 | E38: 414.5553868
A39: 5371 | B39: 0.05371 | C39: 1.055178556 | D39: 0.9477069017 | E39: 324.3285636
A40: 2697 | B40: 0.02697 | C40: 1.027336982 | D40: 0.9733904428 | E40: 247.991881
A41: 7986 | B41: 0.07986 | C41: 1.083135418 | D41: 0.9232455917 | E41: 407.3867729
A42: 7320 | B42: 0.0732 | C42: 1.075945705 | D42: 0.9294149285 | E42: 385.955067
A43: 2552 | B43: 0.02552 | C43: 1.025848423 | D43: 0.9748028827 | E43: 244.5868365
A44: 6886 | B44: 0.06886 | C44: 1.071286219 | D44: 0.933457355 | E44: 372.0647142
A45: 1956 | B45: 0.01956 | C45: 1.01975255 | D45: 0.9806300556 | E45: 234.5696845
A46: 7592 | B46: 0.07592 | C46: 1.078876261 | D46: 0.9268903548 | E46: 394.6930071
A47: 2926 | B47: 0.02926 | C47: 1.02969228 | D47: 0.971163929 | E47: 253.6363294
A48: 2153 | B48: 0.02153 | C48: 1.021763443 | D48: 0.978700116 | E48: 237.1861682
A49: 2657 | B49: 0.02657 | C49: 1.02692613 | D49: 0.9737798769 | E49: 247.0383598
A50: 6718 | B50: 0.06718 | C50: 1.069487969 | D50: 0.9350268813 | E50: 366.7076829
A51: 5172 | B51: 0.05172 | C51: 1.053080839 | D51: 0.9495947161 | E51: 318.1853482
A52: 3116 | B52: 0.03116 | C52: 1.031650555 | D52: 0.9693204694 | E52: 258.5285918
A53: 2350 | B53: 0.0235 | C53: 1.023778301 | D53: 0.9767739747 | E53: 240.1053618
A54: 1113 | B54: 0.01113 | C54: 1.011192169 | D54: 0.9889317093 | E54: 227.8508221
A55: 8886 | B55: 0.08886 | C55: 1.092927636 | D55: 0.9149736609 | E55: 436.5061702
A56: 9659 | B56: 0.09659 | C56: 1.101408703 | D56: 0.9079281804 | E56: 461.6089692
A57: 9073 | B57: 0.09073 | C57: 1.094973323 | D57: 0.913264259 | E57: 442.5727726
A58: 2184 | B58: 0.02184 | C58: 1.022080239 | D58: 0.978396766 | E58: 237.6234508
A59: 1096 | B59: 0.01096 | C59: 1.011020281 | D59: 0.989099842 | E59: 227.8267098
A60: 6997 | B60: 0.06997 | C60: 1.072476006 | D60: 0.9324217921 | E60: 375.6106077
A61: 9733 | B61: 0.09733 | C61: 1.102224048 | D61: 0.9072565621 | E61: 464.0150907
A62: 8018 | B62: 0.08018 | C62: 1.083482077 | D62: 0.9229502004 | E62: 408.4194172
A63: 8678 | B63: 0.08678 | C63: 1.090656709 | D63: 0.9168787868 | E63: 429.7639625
A64: 9869 | B64: 0.09869 | C64: 1.103724092 | D64: 0.9060235318 | E64: 468.4382063
A65: 5619 | B65: 0.05619 | C65: 1.057798646 | D65: 0.9453595005 | E65: 332.035581
A66: 2445 | B66: 0.02445 | C66: 1.024751352 | D66: 0.97584648 | E66: 242.1717872
A67: 7927 | B67: =A67/100000 -> 0.07927 | C67: =EXP((B67)*SQRT(1)) -> 1.082496557 | D67: =1/C67 -> 0.9237904673 | E67: 405.4834568
A68: 8882 | B68: 0.08882 | C68: 1.09288392 | D68: 0.9150102606 | E68: 436.3764538
A69: 2943 | B69: 0.02943 | C69: 1.029867342 | D69: 0.9709988452 | E69: 254.066893
A70: 1344 | B70: 0.01344 | C70: 1.013530723 | D70: 0.9866499135 | E70: 228.7639394
A71: 5257 | B71: 0.05257 | C71: 1.053976338 | D71: 0.9487879036 | E71: 320.8045475
A72: 5095 | B72: 0.05095 | C72: 1.052270278 | D72: 0.9503261857 | E72: 315.8191638
A73: 3158 | B73: 0.03158 | C73: 1.032083939 | D73: 0.9689134403 | E73: 259.6323557
A74: 2961 | B74: 0.02961 | C74: 1.030052735 | D74: 0.9708240811 | E74: 254.5243887
A75: 4579 | B75: 0.04579 | C75: 1.046854548 | D75: 0.9552425421 | E75: 300.1458348
A76: 7841 | B76: 0.07841 | C76: 1.08156601 | D76: 0.9245852689 | E76: 402.7106228
A77: 3961 | B77: 0.03961 | C77: 1.040404937 | D77: 0.9611642201 | E77: 281.9192447
A78: 1087 | B78: 0.01087 | C78: 1.010929293 | D78: 0.989188865 | E78: 227.8145655
A79: 1355 | B79: 0.01355 | C79: 1.013642217 | D79: 0.986541388 | E79: 228.8298509
A80: 6000 | B80: 0.06 | C80: 1.061836547 | D80: 0.9417645336 | E80: 343.9705572
A81: 7104 | B81: 0.07104 | C81: 1.07362417 | D81: 0.9314246344 | E81: 379.033248
A82: 5407 | B82: 0.05407 | C82: 1.055558489 | D82: 0.9473657886 | E82: 325.44396
A83: 9492 | B83: 0.09492 | C83: 1.099570886 | D83: 0.9094456872 | E83: 456.1805859
A84: 1886 | B84: 0.01886 | C84: 1.019038973 | D84: 0.981316737 | E84: 233.7139744
A85: 7009 | B85: 0.07009 | C85: 1.072604711 | D85: 0.9323099082 | E85: 375.9942387
A86: 2204 | B86: 0.02204 | C86: 1.022284675 | D86: 0.9782011062 | E86: 237.9089847
A87: 3923 | B87: 0.03923 | C87: 1.040009658 | D87: 0.9615295319 | E87: 280.8234516
A88: 2782 | B88: 0.02782 | C88: 1.02821059 | D88: 0.9725634125 | E88: 250.0515246
A89: 3442 | B89: 0.03442 | C89: 1.035019224 | D89: 0.9661656298 | E89: 267.2795058
A90: 2873 | B90: 0.02873 | C90: 1.029146687 | D90: 0.9716787823 | E90: 252.3036849
A91: 1645 | B91: 0.01645 | C91: 1.016586046 | D91: 0.9836845624 | E91: 231.113981
A92: 4612 | B92: 0.04612 | C92: 1.047200067 | D92: 0.954927364 | E92: 301.1375079
A93: 7611 | B93: 0.07611 | C93: 1.079081267 | D93: 0.9267142624 | E93: 395.3042001
A94: 4323 | B94: 0.04323 | C94: 1.044178028 | D94: 0.9576910958 | E94: 292.5111437
A95: 3277 | B95: 0.03277 | C95: 1.03331285 | D95: 0.9677611191 | E95: 262.7993916
A96: 4883 | B96: 0.04883 | C96: 1.050041828 | D96: 0.9523430143 | E96: 309.3388766
A97: 1144 | B97: 0.01144 | C97: 1.011505687 | D97: 0.988625188 | E97: 227.8987986
A98: 9513 | B98: 0.09513 | C98: 1.09980182 | D98: 0.9092547237 | E98: 456.863064
A99: 2956 | B99: 0.02956 | C99: 1.030001234 | D99: 0.9708726235 | E99: 254.3971424
A100: 9310 | B100: 0.0931 | C100: 1.097571487 | D100: 0.9111023855 | E100: 450.2675239
A101: 4776 | B101: 0.04776 | C101: 1.048918885 | D101: 0.9533625666 | E101: 306.0889206

Sheet Index
A1: Sr No. | B1: Details
A2: i | B2: All cells shaded in this manner are not supposed to be touched as they contain formulas
A3: ii | B3: The 'Temp' column on Sheet2 generates random numbers between 1000 and 10000. This is copied and pasted as values to add some stability to the sheet
A4: iii | B4: We have used the full normal model approach to compute u and d
A5: Step 1 | B5: Clear 'A5:O31' in Sheet1 and 'EPV' Column in Sheet2
A6: Step 2 | B6: Input values for S0 and Strike on Sheet1. We have entered data for a 1 year European call on Reliance Industries with strike 2500.
A7: Step 3 | B7: Feel free to generate a fresh set of random numbers in the 'temp' column
A8: Step 4 | B8: Select cell 'A18' on Sheet1 and run the Macros named EPVGenerator. The code takes a couple of minutes to run so be patient :)
